[Event "Festival Groningen-A 2024"]
[Site "Groningen"]
[Date "2024.12.29"]
[Round "8.29"]
[White "Hummel, Paul"]
[Black "Ivanov, Dmytry"]
[Result "0-1"]
[ECO "E16"]
[WhiteElo "2160"]
[BlackElo "2072"]
[Annotator "RC"]
[PlyCount "92"]
[EventDate "2024.12.21"]
[EventType "swiss"]
[EventCountry "NED"]
[SourceTitle "playchess.com"]
[Source "ChessBase"]
[SourceQuality "1"]
[TimeControl "40/5400+30:1800+30"]

1. d4 {[%emt 0:00:24]} Nf6 {[%emt 0:10:40]} 2. c4 {[%emt 0:00:07]} b6 {[%emt 0:00:13]} 3. Nf3 {[%emt 0:00:52]} Bb7 {[%emt 0:00:10]} 4. g3 {[%emt 0:00:12]} e6 {[%emt 0:00:11]} 5. Bg2 {[%emt 0:00:06]} c5 {[%emt 0:00:11]} 6. d5 {[%emt 0:01:00]} exd5 {[%emt 0:00:12]} 7. Nh4 {[%emt 0:00:20]} g6 {[%emt 0:00:07]} 8. Nc3 {[%emt 0:03:07]} Bg7 {[%emt 0:00:13]} 9. O-O {[%emt 0:04:15]} O-O {[%emt 0:01:09]} 10. cxd5 {[%emt 0:01:16]} d6 {[%emt 0:01:23]} 11. Nf3 {[%emt 0:02:43]} Na6 {[%emt 0:13:21]} 12. e4 {[%emt 0:06:30]} b5 {[%emt 0:05:26]} 13. Nxb5 {[%emt 0:08:30]} Nxe4 {[%emt 0:00:21]} 14. Bf4 {[%emt 0:09:57]} Qb6 {[%emt 0:03:11]} 15. a4 {[%emt 0:02:57]} Nb4 {[%emt 0:10:54]} 16. Nd2 {[%emt 0:04:19]} Nxd2 {[%emt 0:00:10]} 17. Qxd2 {[%emt 0:00:13]} Ba6 {[%emt 0:08:42]} 18. Rfe1 {[%emt 0:10:35]} Bxb5 {[%emt 0:01:23]} 19. axb5 {[%emt 0:00:07]} Rfe8 {[%emt 0:01:38]} 20. Bf1 {[%emt 0:06:31]} Bd4 {[%emt 0:02:54]} 21. h4 {[%emt 0:01:26]} h5 {[%emt 0:08:13]} 22. Bc4 {[%emt 0:03:51]} Kg7 {[%emt 0:03:58]} 23. Re2 {[%emt 0:05:12]} Rxe2 {[%emt 0:06:53]} 24. Qxe2 {[%emt 0:00:14]} Qd8 {[%emt 0:00:55]} 25. Re1 {[%emt 0:01:19]} Bf6 {[%emt 0:00:36]} 26. Qd2 {[%emt 0:04:49]} Qd7 {[%emt 0:01:22]} 27. Re3 {[%emt 0:00:34]} Rd8 {[%emt 0:01:55]} 28. Ra3 {[%emt 0:05:20]} Re8 {[%emt 0:01:34]} 29. Qc1 {[%emt 0:02:46]} Re4 {[%emt 0:01:53]} 30. Bd2 {[%emt 0:05:09]} Qg4 {[%emt 0:03:06]} 31. Bf1 {[%emt 0:00:19]} Bd4 {[%emt 0:00:53]} 32. Kg2 {[%emt 0:01:47]} Re5 {[%emt 0:03:03]} 33. Bf4 {[%emt 0:01:48]} Re2 {[%emt 0:03:04]} 34. Bxe2 {[%emt 0:01:52]} Qxe2 {[%emt 0:00:07]} 35. Qd2 {[%emt 0:01:41]} Qe4+ {[%emt 0:01:00]} 36. f3 {[%emt 0:00:05]} Qb1 {[%emt 0:03:06]} 37. Qc1 {[%emt 0:01:49]} Qf5 {[%emt 0:01:05]} 38. Rxa7 {[%emt 0:01:56]} Nd3 {[%emt 0:01:25]} 39. Bh6+ {[%emt 0:01:52]} Kh7 {[%emt 0:01:02]} 40. Qd2 {[%emt 0:01:49]} c4 {[%emt 0:01:04]} 41. Rc7 {[%emt 0:05:26]} Qxd5 {[%emt 0:07:01]} 42. Bf8 {[%emt 0:02:26]} Kg8 {[%emt 0:03:11]} 43. Rc8 {[%emt 0:08:18]} Qe6 {[%emt 0:01:34]} 44. Rd8 {[%emt 0:05:42]} Ne1+ {[%emt 0:00:37]} 45. Kf1 {[%emt 0:00:04]} Nxf3 {[%emt 0:00:12]} 46. Bxd6+ {[%emt 0:01:33]} Kh7 {[%emt 0:01:23]} 0-1

[Event "Festival Groningen-A 2024"]
[Site "Groningen"]
[Date "2024.12.29"]
[Round "8.30"]
[White "Van Helvoort, Rob"]
[Black "Van Roon, Sjoerd"]
[Result "0-1"]
[ECO "B31"]
[WhiteElo "2135"]
[BlackElo "2285"]
[Annotator "RC"]
[PlyCount "86"]
[EventDate "2024.12.21"]
[EventType "swiss"]
[EventCountry "NED"]
[SourceTitle "playchess.com"]
[Source "ChessBase"]
[SourceQuality "1"]
[TimeControl "40/5400+30:1800+30"]

1. e4 {[%emt 0:00:04]} c5 {[%emt 0:00:02]} 2. Nf3 {[%emt 0:00:10]} Nc6 {[%emt 0:00:06]} 3. Bb5 {[%emt 0:00:13]} g6 {[%emt 0:00:14]} 4. Bxc6 {[%emt 0:00:43]} dxc6 {[%emt 0:00:07]} 5. d3 {[%emt 0:00:15]} Bg7 {[%emt 0:00:10]} 6. h3 {[%emt 0:00:17]} Nf6 {[%emt 0:00:05]} 7. Nc3 {[%emt 0:00:19]} Nd7 {[%emt 0:00:08]} 8. Be3 {[%emt 0:00:15]} e5 {[%emt 0:00:17]} 9. Qd2 {[%emt 0:00:34]} h6 {[%emt 0:00:06]} 10. O-O {[%emt 0:00:21]} b6 {[%emt 0:00:11]} 11. Ne2 {[%emt 0:06:50]} Nf8 {[%emt 0:02:26]} 12. Nh2 {[%emt 0:09:29]} Ne6 {[%emt 0:01:05]} 13. Rad1 {[%emt 0:04:22]} Nd4 {[%emt 0:15:26]} 14. Ng3 {[%emt 0:06:59]} h5 {[%emt 0:10:38]} 15. c3 {[%emt 0:03:43]} h4 {[%emt 0:01:20]} 16. Nh1 {[%emt 0:05:32]} Ne6 {[%emt 0:02:27]} 17. f4 {[%emt 0:00:36]} exf4 {[%emt 0:01:55]} 18. Bxf4 {[%emt 0:00:42]} Nxf4 {[%emt 0:01:41]} 19. Qxf4 {[%emt 0:00:23]} Be6 {[%emt 0:00:05]} 20. Ng4 {[%emt 0:08:37]} Bxa2 {[%emt 0:03:32]} 21. e5 {[%emt 0:00:53]} Rh5 {[%emt 0:12:24]} 22. Qa4 {[%emt 0:04:07]} Bd5 {[%emt 0:00:50]} 23. c4 {[%emt 0:01:33]} Be6 {[%emt 0:07:30]} 24. Qxc6+ {[%emt 0:01:16]} Ke7 {[%emt 0:00:13]} 25. Qb7+ {[%emt 0:13:29]} Kf8 {[%emt 0:00:13]} 26. d4 {[%emt 0:00:14]} Bxc4 {[%emt 0:07:32]} 27. d5 {[%emt 0:14:06]} Bxf1 {[%emt 0:00:17]} 28. e6 {[%emt 0:01:26]} Rf5 {[%emt 0:07:30]} 29. e7+ {[%emt 0:03:52]} Qxe7 {[%emt 0:00:04]} 30. Qxa8+ {[%emt 0:00:07]} Qe8 {[%emt 0:00:03]} 31. Qxe8+ {[%emt 0:00:45]} Kxe8 {[%emt 0:00:04]} 32. Ne3 {[%emt 0:01:48]} Bb5 {[%emt 0:05:15]} 33. Nxf5 {[%emt 0:00:55]} gxf5 {[%emt 0:00:09]} 34. g3 {[%emt 0:02:39]} Bxb2 {[%emt 0:01:14]} 35. gxh4 {[%emt 0:00:49]} c4 {[%emt 0:04:27]} 36. Nf2 {[%emt 0:00:48]} c3 {[%emt 0:00:26]} 37. Re1+ {[%emt 0:00:29]} Kd7 {[%emt 0:00:38]} 38. Nd1 {[%emt 0:02:18]} Bd3 {[%emt 0:01:21]} 39. Kh2 {[%emt 0:00:55]} f4 {[%emt 0:00:42]} 40. d6 {[%emt 0:06:03]} b5 {[%emt 0:01:11]} 41. h5 {[%emt 0:12:19]} b4 {[%emt 0:00:59]} 42. Re7+ {[%emt 0:06:33]} Kxd6 {[%emt 0:00:14]} 43. Rxa7 {[%emt 0:00:59]} c2 {[%emt 0:00:22]} 0-1